[Event "44th Chess Olympiad Open 2022"]
[Site "Chennai"]
[Date "2022.08.06"]
[Round "8.74"]
[White "Zebaze Dongmo Loic Dylane"]
[Black "Soriano, Rudolph P."]
[Result "1-0"]
[WhiteElo "1837"]
[BlackElo "1824"]
[Annotator "NA RC"]
[PlyCount "131"]
[EventDate "2022.??.??"]
[TimeControl "60"]

1. d4 {[%emt 0:00:15]} Nf6 {[%emt 0:00:11]} 2. Bf4 {[%emt 0:00:07]} d6 {
[%emt 0:00:19]} 3. e3 {[%emt 0:00:07]} g6 {[%emt 0:01:00]} 4. Nd2 {[%emt 0:00:
00]} c6 {[%emt 0:00:15]} 5. c3 {[%emt 0:00:21]} Bg7 {[%emt 0:00:15]} 6. Ngf3 {
[%emt 0:00:12]} h6 {[%emt 0:00:16]} 7. Qb3 {[%emt 0:00:25]} Qb6 {[%emt 0:01:13]
} 8. h3 {[%emt 0:00:17]} Be6 {[%emt 0:01:05]} 9. Qc2 {[%emt 0:00:45]} Na6 {
[%emt 0:01:08]} 10. Bd3 {[%emt 0:01:04]} c5 {[%emt 0:02:38]} 11. O-O {[%emt 0:
00:00]} c4 {[%emt 0:01:48]} 12. Nxc4 {[%emt 0:04:34]} Qc7 {[%emt 0:00:00]} 13.
Ncd2 {[%emt 0:00:37]} Rc8 {[%emt 0:00:30]} 14. Rfe1 {[%emt 0:01:28]} Nd5 {
[%emt 0:01:27]} 15. Bg3 {[%emt 0:01:49]} Ndb4 {[%emt 0:01:23]} 16. Bb5+ {
[%emt 0:00:19]} Bd7 {[%emt 0:03:13]} 17. Bxd7+ {[%emt 0:00:20]} Qxd7 {[%emt 0:
00:00]} 18. Qb3 {[%emt 0:01:03]} Nc6 {[%emt 0:01:17]} 19. e4 {[%emt 0:00:56]}
O-O {[%emt 0:05:02]} 20. e5 {[%emt 0:01:02]} d5 {[%emt 0:00:38]} 21. Re2 {
[%emt 0:03:46]} e6 {[%emt 0:00:47]} 22. Nf1 {[%emt 0:01:02]} Na5 {[%emt 0:00:
00]} 23. Qd1 {[%emt 0:00:53]} Nb8 {[%emt 0:01:37]} 24. Ne3 {[%emt 0:01:57]} Qd8
{[%emt 0:02:54]} 25. Bh4 {[%emt 0:00:38]} g5 {[%emt 0:01:18]} 26. Bg3 {[%emt 0:
00:00]} Nd7 {[%emt 0:00:34]} 27. Nh2 {[%emt 0:00:32]} Nc6 {[%emt 0:01:22]} 28.
Qd3 {[%emt 0:06:44]} Ne7 {[%emt 0:03:29]} 29. Rf1 {[%emt 0:00:35]} f5 {[%emt 0:
00:00]} 30. exf6 {[%emt 0:00:37]} Nxf6 {[%emt 0:01:06]} 31. Neg4 {[%emt 0:00:
00]} Ne4 {[%emt 0:00:31]} 32. Be5 {[%emt 0:00:26]} Ng6 {[%emt 0:01:35]} 33.
Bxg7 {[%emt 0:01:39]} Nf4 {[%emt 0:00:34]} 34. Qe3 {[%emt 0:02:14]} Nxe2+ {
[%emt 0:00:36]} 35. Qxe2 {[%emt 0:00:03]} Kxg7 {[%emt 0:00:45]} 36. f3 {
[%emt 0:00:10]} Nf6 {[%emt 0:09:50]} 37. Ne5 {[%emt 0:02:14]} Nh5 {[%emt 0:00:
00]} 38. Qc2 {[%emt 0:00:45]} Qe8 {[%emt 0:01:02]} 39. Nhg4 {[%emt 0:03:29]}
Ng3 {[%emt 0:02:30]} 40. Re1 {[%emt 0:00:54]} Nf5 {[%emt 0:01:14]} 41. Qe2 {
[%emt 0:33:41]} h5 {[%emt 0:31:43]} 42. Ne3 {[%emt 0:00:53]} Rf6 {[%emt 0:00:
00]} 43. Nd3 {[%emt 0:00:41]} Nxe3 {[%emt 0:07:22]} 44. Qxe3 {[%emt 0:00:03]}
Qg6 {[%emt 0:01:25]} 45. Ne5 {[%emt 0:00:54]} Qf5 {[%emt 0:05:35]} 46. Qe2 {
[%emt 0:01:46]} Rc7 {[%emt 0:02:10]} 47. Qb5 {[%emt 0:01:50]} Rf8 {[%emt 0:00:
00]} 48. Qb4 {[%emt 0:02:59]} Qf6 {[%emt 0:04:32]} 49. Qa4 {[%emt 0:01:32]} Qd8
{[%emt 0:03:16]} 50. Qxa7 {[%emt 0:01:43]} g4 {[%emt 0:01:22]} 51. hxg4 {
[%emt 0:01:22]} Qh4 {[%emt 0:00:51]} 52. Re2 {[%emt 0:01:24]} Rf4 {[%emt 0:00:
00]} 53. Qa4 {[%emt 0:02:16]} b5 {[%emt 0:01:40]} 54. Qxb5 {[%emt 0:00:45]}
Rxd4 {[%emt 0:01:23]} 55. Nd3 {[%emt 0:02:25]} Rdc4 {[%emt 0:05:28]} 56. Rxe6 {
[%emt 0:00:48]} hxg4 {[%emt 0:02:24]} 57. Qe8 {[%emt 0:01:35]} Qg5 {[%emt 0:00:
00]} 58. f4 {[%emt 0:01:55]} Qf5 {[%emt 0:02:14]} 59. Ne5 {[%emt 0:01:35]} Qb1+
{[%emt 0:00:00]} 60. Kh2 {[%emt 0:00:00]} g3+ {[%emt 0:00:00]} 61. Kxg3 {
[%emt 0:00:00]} Qe1+ {[%emt 0:00:00]} 62. Kg4 {[%emt 0:00:00]} Qe2+ {[%emt 0:
00:00]} 63. Kg5 {[%emt 0:00:00]} Qxg2+ {[%emt 0:00:00]} 64. Ng4 {[%emt 0:00:00]
} R4c6 {[%emt 0:00:00]} 65. Qg6+ {[%emt 0:00:00]} Kf8 {[%emt 0:00:00]} 66. Qg7+
{[%emt 0:00:08]} 1-0

[Event "44th Chess Olympiad Open 2022"]
[Site "Chennai"]
[Date "2022.08.06"]
[Round "8.75"]
[White "Nevska, Gerda"]
[Black "Paiva, Donaldo"]
[Result "0-1"]
[WhiteElo "1840"]
[BlackElo "2191"]
[Annotator "NA RC"]
[PlyCount "54"]
[EventDate "2022.??.??"]
[TimeControl "60"]

1. c4 {[%emt 0:00:09]} c5 {[%emt 0:00:10]} 2. Nc3 {[%emt 0:00:06]} Nc6 {
[%emt 0:00:05]} 3. g3 {[%emt 0:00:12]} g6 {[%emt 0:00:05]} 4. Bg2 {[%emt 0:00:
00]} Bg7 {[%emt 0:00:06]} 5. e4 {[%emt 0:00:09]} e6 {[%emt 0:00:08]} 6. Nge2 {
[%emt 0:00:16]} Nge7 {[%emt 0:00:07]} 7. O-O {[%emt 0:00:35]} a6 {[%emt 0:00:
00]} 8. d3 {[%emt 0:01:56]} Rb8 {[%emt 0:00:32]} 9. Be3 {[%emt 0:05:19]} Nd4 {
[%emt 0:00:24]} 10. Qc1 {[%emt 0:02:09]} O-O {[%emt 0:10:35]} 11. Bh6 {[%emt 0:
00:00]} Nec6 {[%emt 0:01:03]} 12. Bxg7 {[%emt 0:01:06]} Kxg7 {[%emt 0:00:06]}
13. Qd2 {[%emt 0:04:55]} b5 {[%emt 0:01:43]} 14. Nxd4 {[%emt 0:13:24]} cxd4 {
[%emt 0:01:44]} 15. Ne2 {[%emt 0:00:57]} bxc4 {[%emt 0:00:23]} 16. dxc4 {
[%emt 0:00:14]} e5 {[%emt 0:00:06]} 17. Rab1 {[%emt 0:07:56]} a5 {[%emt 0:00:
00]} 18. a3 {[%emt 0:00:41]} a4 {[%emt 0:00:39]} 19. Qd1 {[%emt 0:17:18]} Qa5 {
[%emt 0:00:21]} 20. b4 {[%emt 0:01:21]} axb3 {[%emt 0:00:25]} 21. Rxb3 {
[%emt 0:01:06]} Ba6 {[%emt 0:00:10]} 22. Rxb8 {[%emt 0:07:32]} Rxb8 {[%emt 0:
00:00]} 23. Bh3 {[%emt 0:03:01]} Bxc4 {[%emt 0:21:56]} 24. Bxd7 {[%emt 0:10:45]
} d3 {[%emt 0:00:12]} 25. Nf4 {[%emt 0:03:49]} d2 {[%emt 0:10:17]} 26. Bxc6 {
[%emt 0:01:47]} Bxf1 {[%emt 0:01:33]} 27. Nd5 {[%emt 0:01:47]} Be2 {[%emt 0:00:
00]} 0-1

[Event "44th Chess Olympiad Open 2022"]
[Site "Chennai"]
[Date "2022.08.06"]
[Round "8.75"]
[White "Napoleao, Lourenco"]
[Black "Brookfield, Toby"]
[Result "1-0"]
[WhiteElo "1778"]
[BlackElo "1815"]
[Annotator "NA RC"]
[PlyCount "47"]
[EventDate "2022.??.??"]
[TimeControl "60"]

1. e4 {[%emt 0:00:03]} c5 {[%emt 0:00:09]} 2. Nf3 {[%emt 0:00:05]} g6 {[%emt 0:
00:00]} 3. d4 {[%emt 0:00:18]} cxd4 {[%emt 0:00:07]} 4. Qxd4 {[%emt 0:00:07]}
Nf6 {[%emt 0:00:10]} 5. e5 {[%emt 0:00:09]} Nc6 {[%emt 0:00:28]} 6. Qa4 {
[%emt 0:00:04]} Nd5 {[%emt 0:00:19]} 7. Qb3 {[%emt 0:00:16]} Nc7 {[%emt 0:00:
00]} 8. Nc3 {[%emt 0:00:31]} Bg7 {[%emt 0:00:46]} 9. Bf4 {[%emt 0:00:13]} Ne6 {
[%emt 0:00:33]} 10. Bg3 {[%emt 0:00:07]} a6 {[%emt 0:00:14]} 11. O-O-O {
[%emt 0:05:18]} b5 {[%emt 0:00:31]} 12. h4 {[%emt 0:04:52]} h5 {[%emt 0:00:07]}
13. Ne4 {[%emt 0:02:13]} Bb7 {[%emt 0:02:29]} 14. Neg5 {[%emt 0:07:03]} Qc7 {
[%emt 0:16:34]} 15. Kb1 {[%emt 0:03:37]} Rc8 {[%emt 0:07:29]} 16. Bd3 {[%emt 0:
00:00]} Na5 {[%emt 0:06:13]} 17. Qb4 {[%emt 0:02:18]} Nc4 {[%emt 0:03:22]} 18.
Rhe1 {[%emt 0:02:33]} Qb6 {[%emt 0:08:07]} 19. Bxc4 {[%emt 0:07:31]} Rxc4 {
[%emt 0:00:29]} 20. Qd2 {[%emt 0:00:12]} Rc7 {[%emt 0:10:58]} 21. Nxe6 {
[%emt 0:02:43]} Qxe6 {[%emt 0:01:09]} 22. Ng5 {[%emt 0:01:43]} Qc6 {[%emt 0:00:
00]} 23. e6 {[%emt 0:05:29]} fxe6 {[%emt 0:09:50]} 24. Nxe6 {[%emt 0:12:39]}
1-0

[Event "44th Chess Olympiad Open 2022"]
[Site "Chennai"]
[Date "2022.08.06"]
[Round "8.76"]
[White "Hussain, Hashem"]
[Black "Thomas, Larry"]
[Result "1/2-1/2"]
[WhiteElo "1757"]
[BlackElo "1317"]
[Annotator "NA RC"]
[PlyCount "90"]
[EventDate "2022.??.??"]
[TimeControl "60"]

1. e4 {[%emt 0:00:03]} c6 {[%emt 0:00:04]} 2. d4 {[%emt 0:00:06]} d5 {[%emt 0:
00:00]} 3. Nc3 {[%emt 0:00:27]} dxe4 {[%emt 0:00:12]} 4. Nxe4 {[%emt 0:00:07]}
Nf6 {[%emt 0:00:07]} 5. Nxf6+ {[%emt 0:01:00]} exf6 {[%emt 0:00:14]} 6. c3 {
[%emt 0:01:40]} Bd6 {[%emt 0:00:12]} 7. Bd3 {[%emt 0:01:41]} h5 {[%emt 0:01:04]
} 8. Ne2 {[%emt 0:03:27]} Bg4 {[%emt 0:03:12]} 9. h3 {[%emt 0:01:37]} Be6 {
[%emt 0:00:11]} 10. Nf4 {[%emt 0:03:24]} Bxf4 {[%emt 0:03:42]} 11. Bxf4 {
[%emt 0:00:19]} Nd7 {[%emt 0:03:15]} 12. Qe2 {[%emt 0:04:22]} g6 {[%emt 0:00:
00]} 13. Bxg6 {[%emt 0:02:53]} fxg6 {[%emt 0:01:02]} 14. Qxe6+ {[%emt 0:01:26]}
Qe7 {[%emt 0:00:17]} 15. Qxe7+ {[%emt 0:00:35]} Kxe7 {[%emt 0:00:02]} 16. O-O-O
{[%emt 0:00:35]} Kf7 {[%emt 0:00:15]} 17. d5 {[%emt 0:05:08]} cxd5 {[%emt 0:00:
00]} 18. Rxd5 {[%emt 0:05:50]} Nb6 {[%emt 0:00:42]} 19. Rd4 {[%emt 0:06:08]}
Rad8 {[%emt 0:02:49]} 20. Rhd1 {[%emt 0:01:34]} Rxd4 {[%emt 0:00:04]} 21. Rxd4
{[%emt 0:00:18]} Re8 {[%emt 0:04:59]} 22. Be3 {[%emt 0:02:06]} Re7 {[%emt 0:00:
00]} 23. Kc2 {[%emt 0:12:31]} g5 {[%emt 0:04:04]} 24. b3 {[%emt 0:02:35]} Nd7 {
[%emt 0:06:13]} 25. Rc4 {[%emt 0:05:31]} Ne5 {[%emt 0:03:22]} 26. Rc8 {[%emt 0:
00:00]} Nc6 {[%emt 0:01:43]} 27. Rh8 {[%emt 0:05:55]} Kg6 {[%emt 0:00:48]} 28.
h4 {[%emt 0:04:03]} Rg7 {[%emt 0:15:41]} 29. hxg5 {[%emt 0:03:24]} fxg5 {
[%emt 0:01:17]} 30. a4 {[%emt 0:02:12]} a6 {[%emt 0:03:25]} 31. b4 {[%emt 0:00:
00]} Ne7 {[%emt 0:03:08]} 32. Rd8 {[%emt 0:04:56]} Nf5 {[%emt 0:01:06]} 33. Bc5
{[%emt 0:01:15]} h4 {[%emt 0:02:32]} 34. Kd3 {[%emt 0:01:43]} g4 {[%emt 0:00:
00]} 35. Ke4 {[%emt 0:02:47]} h3 {[%emt 0:03:01]} 36. gxh3 {[%emt 0:01:21]}
gxh3 {[%emt 0:00:13]} 37. Rd1 {[%emt 0:01:07]} Rh7 {[%emt 0:05:54]} 38. Rh1 {
[%emt 0:01:43]} Rh4+ {[%emt 0:00:51]} 39. Kf3 {[%emt 0:01:32]} Rh7 {[%emt 0:00:
00]} 40. Be3 {[%emt 0:01:38]} Rc7 {[%emt 0:06:15]} 41. Bd2 {[%emt 0:05:46]} Rd7
{[%emt 0:02:36]} 42. Be1 {[%emt 0:00:46]} Rh7 {[%emt 0:00:37]} 43. Ke2 {
[%emt 0:03:24]} Kg5 {[%emt 0:03:25]} 44. f3 {[%emt 0:02:11]} Kf4 {[%emt 0:00:
00]} 45. Kf2 {[%emt 0:00:55]} Rh8 {[%emt 0:03:17]} 1/2-1/2

[Event "44th Chess Olympiad Open 2022"]
[Site "Chennai"]
[Date "2022.08.06"]
[Round "8.76"]
[White "Bridet, Robert"]
[Black "Hashem, Khaled"]
[Result "0-1"]
[WhiteElo "1497"]
[BlackElo "1870"]
[Annotator "NA RC"]
[PlyCount "106"]
[EventDate "2022.??.??"]
[TimeControl "60"]

1. e4 {[%emt 0:00:04]} c6 {[%emt 0:00:03]} 2. d4 {[%emt 0:00:20]} d5 {[%emt 0:
00:00]} 3. exd5 {[%emt 0:00:20]} cxd5 {[%emt 0:00:02]} 4. Bd3 {[%emt 0:00:30]}
Nf6 {[%emt 0:00:15]} 5. Nf3 {[%emt 0:00:53]} Nc6 {[%emt 0:00:22]} 6. O-O {
[%emt 0:00:59]} Bg4 {[%emt 0:00:36]} 7. c3 {[%emt 0:00:57]} Qc7 {[%emt 0:02:38]
} 8. Nbd2 {[%emt 0:00:40]} e6 {[%emt 0:00:16]} 9. h3 {[%emt 0:00:23]} Bh5 {
[%emt 0:00:08]} 10. Re1 {[%emt 0:01:29]} Be7 {[%emt 0:00:12]} 11. Nf1 {[%emt 0:
00:00]} O-O {[%emt 0:01:24]} 12. Ng3 {[%emt 0:01:17]} Bg6 {[%emt 0:00:10]} 13.
Bxg6 {[%emt 0:01:59]} hxg6 {[%emt 0:00:02]} 14. Qd3 {[%emt 0:04:21]} Bd6 {
[%emt 0:01:30]} 15. Ng5 {[%emt 0:06:13]} a6 {[%emt 0:02:17]} 16. Bd2 {[%emt 0:
00:00]} b5 {[%emt 0:01:18]} 17. h4 {[%emt 0:01:29]} a5 {[%emt 0:10:39]} 18. Nh3
{[%emt 0:00:35]} b4 {[%emt 0:00:40]} 19. Bg5 {[%emt 0:00:29]} Nh7 {[%emt 0:00:
00]} 20. h5 {[%emt 0:06:52]} Nxg5 {[%emt 0:08:43]} 21. Nxg5 {[%emt 0:00:40]}
Bf4 {[%emt 0:00:18]} 22. Nh3 {[%emt 0:01:44]} Bxg3 {[%emt 0:00:16]} 23. fxg3 {
[%emt 0:00:19]} Ne7 {[%emt 0:32:26]} 24. Re5 {[%emt 0:04:31]} bxc3 {[%emt 0:00:
00]} 25. bxc3 {[%emt 0:00:20]} Rac8 {[%emt 0:00:30]} 26. Rc1 {[%emt 0:00:53]}
Qc4 {[%emt 0:00:37]} 27. Qc2 {[%emt 0:01:54]} Nc6 {[%emt 0:01:18]} 28. Re2 {
[%emt 0:01:27]} Nxd4 {[%emt 0:00:18]} 29. cxd4 {[%emt 0:09:28]} Qxd4+ {[%emt 0:
00:00]} 30. Kh2 {[%emt 0:00:11]} Rxc2 {[%emt 0:00:07]} 31. Rcxc2 {[%emt 0:00:
00]} gxh5 {[%emt 0:00:31]} 32. Red2 {[%emt 0:00:31]} Qe5 {[%emt 0:00:54]} 33.
Nf4 {[%emt 0:01:10]} h4 {[%emt 0:01:02]} 34. Rf2 {[%emt 0:01:56]} hxg3+ {
[%emt 0:00:55]} 35. Kxg3 {[%emt 0:00:21]} g5 {[%emt 0:00:13]} 36. Kh2 {[%emt 0:
00:00]} gxf4 {[%emt 0:00:43]} 37. Rf3 {[%emt 0:00:31]} Rb8 {[%emt 0:01:32]} 38.
Rcf2 {[%emt 0:00:38]} Rb2 {[%emt 0:02:10]} 39. Rxb2 {[%emt 0:00:20]} Qxb2 {
[%emt 0:00:47]} 40. Rxf4 {[%emt 0:00:20]} Qxa2 {[%emt 0:00:13]} 41. Kh3 {
[%emt 0:32:18]} a4 {[%emt 0:30:26]} 42. g4 {[%emt 0:00:07]} Qc4 {[%emt 0:01:27]
} 43. Rf3 {[%emt 0:00:39]} Qb3 {[%emt 0:04:56]} 44. Kg3 {[%emt 0:09:06]} Qxf3+
{[%emt 0:00:14]} 45. Kxf3 {[%emt 0:03:05]} a3 {[%emt 0:00:07]} 46. Kf4 {
[%emt 0:20:53]} e5+ {[%emt 0:05:23]} 47. Kxe5 {[%emt 0:00:57]} f5 {[%emt 0:00:
00]} 48. gxf5 {[%emt 0:00:23]} Kf7 {[%emt 0:00:09]} 49. f6 {[%emt 0:00:07]} d4
{[%emt 0:00:18]} 50. Kxd4 {[%emt 0:00:27]} a2 {[%emt 0:00:04]} 51. Ke4 {
[%emt 0:00:30]} Ke6 {[%emt 0:00:13]} 52. f7 {[%emt 0:00:09]} Ke7 {[%emt 0:00:
00]} 53. f8=Q+ {[%emt 0:00:35]} Kxf8 {[%emt 0:00:12]} 0-1

[Event "44th Chess Olympiad Open 2022"]
[Site "Chennai"]
[Date "2022.08.06"]
[Round "8.78"]
[White "Isam, Gaith"]
[Black "Jones, Rupert"]
[Result "1/2-1/2"]
[WhiteElo "1828"]
[BlackElo "1766"]
[Annotator "NA RC"]
[PlyCount "98"]
[EventDate "2022.??.??"]
[TimeControl "60"]

1. e4 {[%emt 0:00:23]} c5 {[%emt 0:01:54]} 2. Nc3 {[%emt 0:00:11]} Nc6 {
[%emt 0:00:53]} 3. f4 {[%emt 0:00:10]} d6 {[%emt 0:01:49]} 4. Nf3 {[%emt 0:00:
00]} a6 {[%emt 0:02:14]} 5. a4 {[%emt 0:00:26]} e6 {[%emt 0:01:40]} 6. g3 {
[%emt 0:01:36]} d5 {[%emt 0:03:21]} 7. e5 {[%emt 0:00:59]} Nge7 {[%emt 0:05:08]
} 8. Bg2 {[%emt 0:00:13]} Nf5 {[%emt 0:00:28]} 9. d3 {[%emt 0:01:10]} Be7 {
[%emt 0:00:22]} 10. O-O {[%emt 0:00:19]} O-O {[%emt 0:01:19]} 11. Ne2 {[%emt 0:
00:00]} Bd7 {[%emt 0:03:12]} 12. c3 {[%emt 0:00:21]} b5 {[%emt 0:01:34]} 13. g4
{[%emt 0:05:12]} Nh6 {[%emt 0:07:12]} 14. g5 {[%emt 0:02:08]} Nf5 {[%emt 0:00:
00]} 15. Ng3 {[%emt 0:00:18]} Nxg3 {[%emt 0:05:31]} 16. hxg3 {[%emt 0:00:05]}
Rb8 {[%emt 0:01:59]} 17. Kf2 {[%emt 0:00:37]} f6 {[%emt 0:03:13]} 18. gxf6 {
[%emt 0:02:02]} gxf6 {[%emt 0:00:13]} 19. Rh1 {[%emt 0:00:31]} fxe5 {[%emt 0:
00:00]} 20. axb5 {[%emt 0:02:56]} axb5 {[%emt 0:00:45]} 21. Ra6 {[%emt 0:00:49]
} Rb6 {[%emt 0:03:12]} 22. Nxe5 {[%emt 0:05:35]} Nxe5 {[%emt 0:01:34]} 23. Qh5
{[%emt 0:01:22]} Nxd3+ {[%emt 0:05:47]} 24. Ke3 {[%emt 0:00:08]} Rf7 {[%emt 0:
00:00]} 25. Rxb6 {[%emt 0:01:09]} Qxb6 {[%emt 0:09:12]} 26. Kxd3 {[%emt 0:00:
00]} b4 {[%emt 0:02:22]} 27. Kd2 {[%emt 0:14:10]} bxc3+ {[%emt 0:04:32]} 28.
bxc3 {[%emt 0:00:18]} Qb3 {[%emt 0:01:11]} 29. Bf1 {[%emt 0:07:39]} Bf6 {
[%emt 0:06:22]} 30. Bd3 {[%emt 0:01:47]} Bxc3+ {[%emt 0:04:15]} 31. Ke2 {
[%emt 0:00:17]} Bb5 {[%emt 0:04:44]} 32. Qg5+ {[%emt 0:06:04]} Bg7 {[%emt 0:00:
00]} 33. Bxb5 {[%emt 0:00:17]} Qxb5+ {[%emt 0:00:18]} 34. Kf2 {[%emt 0:00:25]}
Qd3 {[%emt 0:01:59]} 35. Re1 {[%emt 0:02:26]} Qc2+ {[%emt 0:04:05]} 36. Kf3 {
[%emt 0:06:50]} Qf5 {[%emt 0:02:45]} 37. Qd8+ {[%emt 0:06:20]} Rf8 {[%emt 0:00:
00]} 38. Qe7 {[%emt 0:00:21]} e5 {[%emt 0:02:54]} 39. Qxc5 {[%emt 0:01:25]} e4+
{[%emt 0:00:02]} 40. Kg2 {[%emt 0:00:45]} Rd8 {[%emt 0:00:23]} 41. Be3 {
[%emt 0:40:21]} Rc8 {[%emt 0:31:04]} 42. Qb5 {[%emt 0:01:35]} Qh5 {[%emt 0:00:
00]} 43. Kg1 {[%emt 0:00:00]} Qf7 {[%emt 0:00:00]} 44. Rd1 {[%emt 0:00:00]} d4
{[%emt 0:00:00]} 45. Bxd4 {[%emt 0:00:00]} Bxd4+ {[%emt 0:00:00]} 46. Rxd4 {
[%emt 0:00:00]} Rc1+ {[%emt 0:00:00]} 47. Kg2 {[%emt 0:00:00]} Qa2+ {[%emt 0:
00:00]} 48. Kh3 {[%emt 0:00:00]} Qe6+ {[%emt 0:00:00]} 49. Kg2 {[%emt 0:03:08]}
Qa2+ {[%emt 0:00:00]} 1/2-1/2

[Event "44th Chess Olympiad Open 2022"]
[Site "Chennai"]
[Date "2022.08.06"]
[Round "8.78"]
[White "McCoy, Tom"]
[Black "Miswadah, Baha"]
[Result "0-1"]
[WhiteElo "1812"]
[BlackElo "1985"]
[Annotator "NA RC"]
[PlyCount "98"]
[EventDate "2022.??.??"]
[TimeControl "60"]

1. e4 {[%emt 0:00:05]} c5 {[%emt 0:00:18]} 2. Nf3 {[%emt 0:00:08]} e6 {[%emt 0:
00:00]} 3. d4 {[%emt 0:00:20]} cxd4 {[%emt 0:00:06]} 4. Nxd4 {[%emt 0:00:06]}
a6 {[%emt 0:00:05]} 5. Nc3 {[%emt 0:00:45]} Qc7 {[%emt 0:00:08]} 6. Be2 {
[%emt 0:02:08]} b5 {[%emt 0:00:21]} 7. a3 {[%emt 0:01:34]} Bb7 {[%emt 0:00:23]}
8. O-O {[%emt 0:01:40]} Nf6 {[%emt 0:00:29]} 9. Qd3 {[%emt 0:03:25]} Nc6 {
[%emt 0:01:18]} 10. Nxc6 {[%emt 0:03:38]} dxc6 {[%emt 0:00:21]} 11. f4 {
[%emt 0:06:06]} c5 {[%emt 0:03:24]} 12. Bf3 {[%emt 0:02:45]} h5 {[%emt 0:06:03]
} 13. e5 {[%emt 0:06:16]} c4 {[%emt 0:08:30]} 14. Qe2 {[%emt 0:00:41]} Bc5+ {
[%emt 0:01:09]} 15. Be3 {[%emt 0:06:28]} Ng4 {[%emt 0:03:26]} 16. Bxg4 {
[%emt 0:01:27]} hxg4 {[%emt 0:00:54]} 17. Bxc5 {[%emt 0:07:18]} Qxc5+ {[%emt 0:
00:00]} 18. Qf2 {[%emt 0:00:14]} Qxf2+ {[%emt 0:15:27]} 19. Rxf2 {[%emt 0:00:
00]} Rd8 {[%emt 0:01:13]} 20. Rd1 {[%emt 0:02:17]} Rxd1+ {[%emt 0:08:19]} 21.
Nxd1 {[%emt 0:00:11]} f5 {[%emt 0:00:53]} 22. Rd2 {[%emt 0:12:42]} Ke7 {
[%emt 0:00:22]} 23. Ne3 {[%emt 0:00:41]} g5 {[%emt 0:01:46]} 24. fxg5 {[%emt 0:
00:00]} Rh5 {[%emt 0:00:34]} 25. g6 {[%emt 0:04:27]} Rg5 {[%emt 0:00:56]} 26.
g3 {[%emt 0:04:44]} Rxg6 {[%emt 0:01:00]} 27. Rd6 {[%emt 0:03:17]} Rg8 {
[%emt 0:02:49]} 28. Ng2 {[%emt 0:03:01]} Bxg2 {[%emt 0:10:42]} 29. Kxg2 {
[%emt 0:00:15]} Rc8 {[%emt 0:00:31]} 30. Kf2 {[%emt 0:05:11]} Rc5 {[%emt 0:00:
00]} 31. Rxa6 {[%emt 0:00:56]} Rxe5 {[%emt 0:00:09]} 32. Ra5 {[%emt 0:02:28]}
c3 {[%emt 0:01:56]} 33. bxc3 {[%emt 0:03:47]} Rc5 {[%emt 0:03:00]} 34. a4 {
[%emt 0:03:32]} Rxc3 {[%emt 0:00:24]} 35. Rxb5 {[%emt 0:04:08]} Rxc2+ {[%emt 0:
00:00]} 36. Kg1 {[%emt 0:03:42]} Ra2 {[%emt 0:00:17]} 37. a5 {[%emt 0:00:24]}
Kd6 {[%emt 0:01:29]} 38. Kh1 {[%emt 0:02:29]} Rc2 {[%emt 0:03:15]} 39. a6 {
[%emt 0:01:59]} Ra2 {[%emt 0:00:11]} 40. Rb6+ {[%emt 0:00:13]} Kd5 {[%emt 0:00:
00]} 41. Kg1 {[%emt 0:30:27]} e5 {[%emt 0:33:59]} 42. Rf6 {[%emt 0:00:00]} Ke4
{[%emt 0:00:00]} 43. Re6 {[%emt 0:00:00]} Kf3 {[%emt 0:00:00]} 44. h4 {[%emt 0:
00:00]} Kxg3 {[%emt 0:00:00]} 45. Kf1 {[%emt 0:00:00]} Kxh4 {[%emt 0:00:00]}
46. Rxe5 {[%emt 0:00:00]} f4 {[%emt 0:00:00]} 47. Re4 {[%emt 0:00:00]} f3 {
[%emt 0:00:00]} 48. Ke1 {[%emt 0:00:00]} Rxa6 {[%emt 0:00:00]} 49. Kf2 {
[%emt 0:00:00]} Ra2+ {[%emt 0:00:00]} 0-1

[Event "44th Chess Olympiad Open 2022"]
[Site "Chennai"]
[Date "2022.08.06"]
[Round "8.78"]
[White "Shawabke Ziyad"]
[Black "Fancy, Stuart"]
[Result "1/2-1/2"]
[WhiteElo "1786"]
[BlackElo "1984"]
[Annotator "NA RC"]
[PlyCount "106"]
[EventDate "2022.??.??"]
[TimeControl "60"]

1. c4 {[%emt 0:00:12]} d6 {[%emt 0:00:14]} 2. d4 {[%emt 0:00:54]} Nd7 {[%emt 0:
00:00]} 3. Nf3 {[%emt 0:01:04]} e5 {[%emt 0:00:23]} 4. Nc3 {[%emt 0:00:57]} c6
{[%emt 0:01:12]} 5. e4 {[%emt 0:00:34]} Be7 {[%emt 0:00:53]} 6. Be2 {[%emt 0:
00:00]} Ngf6 {[%emt 0:00:36]} 7. O-O {[%emt 0:00:30]} Qc7 {[%emt 0:00:13]} 8.
h3 {[%emt 0:01:47]} h6 {[%emt 0:00:29]} 9. Be3 {[%emt 0:00:17]} g5 {[%emt 0:00:
00]} 10. Nh2 {[%emt 0:14:36]} Nf8 {[%emt 0:01:05]} 11. c5 {[%emt 0:07:16]} dxc5
{[%emt 0:04:23]} 12. dxe5 {[%emt 0:00:14]} N6d7 {[%emt 0:01:10]} 13. f4 {
[%emt 0:01:55]} gxf4 {[%emt 0:09:49]} 14. Bxf4 {[%emt 0:01:09]} Ng6 {[%emt 0:
00:00]} 15. Bh5 {[%emt 0:06:28]} Ndxe5 {[%emt 0:10:13]} 16. Bxg6 {[%emt 0:00:
00]} fxg6 {[%emt 0:00:12]} 17. Qb3 {[%emt 0:02:52]} Bd6 {[%emt 0:06:47]} 18.
Bxe5 {[%emt 0:16:08]} Bxe5 {[%emt 0:00:07]} 19. Nf3 {[%emt 0:00:16]} Bg7 {
[%emt 0:19:45]} 20. e5 {[%emt 0:03:46]} Qe7 {[%emt 0:05:34]} 21. Ne4 {[%emt 0:
00:00]} c4 {[%emt 0:04:54]} 22. Qxc4 {[%emt 0:06:31]} Be6 {[%emt 0:00:11]} 23.
Qc3 {[%emt 0:00:14]} O-O {[%emt 0:01:47]} 24. Nf6+ {[%emt 0:03:33]} Bxf6 {
[%emt 0:00:29]} 25. exf6 {[%emt 0:00:06]} Rxf6 {[%emt 0:02:40]} 26. Qe3 {
[%emt 0:01:35]} Qg7 {[%emt 0:04:14]} 27. Rfd1 {[%emt 0:01:56]} Bd5 {[%emt 0:00:
00]} 28. Nd4 {[%emt 0:00:30]} Raf8 {[%emt 0:00:47]} 29. b3 {[%emt 0:01:05]} Kh7
{[%emt 0:01:08]} 30. Rac1 {[%emt 0:00:23]} R8f7 {[%emt 0:00:30]} 31. Rf1 {
[%emt 0:01:12]} Re7 {[%emt 0:01:10]} 32. Qd2 {[%emt 0:00:28]} Rd6 {[%emt 0:00:
00]} 33. Qf4 {[%emt 0:00:37]} Red7 {[%emt 0:00:31]} 34. Nf3 {[%emt 0:00:27]}
Rf6 {[%emt 0:01:31]} 35. Ng5+ {[%emt 0:00:06]} hxg5 {[%emt 0:00:25]} 36. Qxf6 {
[%emt 0:00:15]} Qxf6 {[%emt 0:03:05]} 37. Rxf6 {[%emt 0:00:02]} Re7 {[%emt 0:
00:00]} 38. Rf2 {[%emt 0:01:18]} Re4 {[%emt 0:01:16]} 39. Kf1 {[%emt 0:00:50]}
g4 {[%emt 0:00:18]} 40. Re1 {[%emt 0:00:29]} gxh3 {[%emt 0:01:06]} 41. gxh3 {
[%emt 0:30:21]} Rb4 {[%emt 0:30:28]} 42. Kg1 {[%emt 0:00:59]} a5 {[%emt 0:00:
00]} 43. Re7+ {[%emt 0:00:31]} Kh6 {[%emt 0:00:15]} 44. Rf8 {[%emt 0:00:00]} a4
{[%emt 0:00:00]} 45. h4 {[%emt 0:00:00]} g5 {[%emt 0:00:00]} 46. hxg5+ {
[%emt 0:00:00]} Kg6 {[%emt 0:00:00]} 47. Re5 {[%emt 0:00:00]} axb3 {[%emt 0:00:
00]} 48. Rf6+ {[%emt 0:00:00]} Kh5 {[%emt 0:00:00]} 49. Rh6+ {[%emt 0:00:00]}
Kg4 {[%emt 0:00:00]} 50. axb3 {[%emt 0:00:00]} Rxb3 {[%emt 0:00:00]} 51. g6 {
[%emt 0:00:00]} Kf4 {[%emt 0:00:00]} 52. Reh5 {[%emt 0:00:00]} Rb1+ {[%emt 0:
00:00]} 53. Kf2 {[%emt 0:00:00]} Rb2+ {[%emt 0:00:00]} 1/2-1/2